Workbook

Sheet Nov
D1: Månedsrapport | V1: Indtast mdr 1-12
C2: Navn: | K2: Måned: | M2: =CHOOSE(V2,"Jan-Feb","Feb-Mar","Mar-Apr","Apr-Maj","Maj-Jun","Jun-Jul","Jul-Aug","Aug-Sep","Sep_Okt","Okt-Nov","Nov-Dec","Dec-Jan") -> Jan-Feb | P2: År : | Q2: 2021 | V2: 1
A4: Vagttype | B4: Uge | C4: Dag | D4: Dato | E4: Planl. Møde tid Fra - Til | G4: Faktisk Møde Tid. Fra-Til | I4: Udf. Tim. Dag | J4: Udf. Tim. A/N | K4: Afsp. Tim. | L4: Ku. Tim. | M4: Till. A/N | N4: Till Week- End | O4: Extra Tim. | P4: Timer 50% Tillæg | Q4: Timer 100% Tillæg | R4: Syg / Barn S/ Barsel | S4: Ferie Timer | T4: Ferie Fri Timer
A5: 1 | B5: =_xlfn.ISOWEEKNUM(D5) -> 2 | C5: =CHOOSE(WEEKDAY(D5,11),"man", "Tirs","Ons","Tors","FRE","Lør","søn") -> Lør | D5: =DATE(Q2,V2,16) -> 2017-01-15 | E5: =IF(A5<>"",VLOOKUP(A5,Data!$N$3:$O$5,2,0),"") -> 07:45:00 | F5: =IF(A5<>"",VLOOKUP(A5,Data!$P$3:$Q$5,2,0),"") -> 16:00:00 | G5: =+E5 -> 07:45:00 | H5: =+F5 -> 16:00:00 | I5: =IF(F5=E5," ",IF(E5="",0,(+F5-E5)*24)) -> 8.25 | K5: =IF(OR(G5="",H5=""),"",IF(((V5-I5)*-1)<=0.2,"", IF((V5-I5)*-1<0,"",(V5-I5)*-1))) ->  | M5: =IF(OR(G5="",H5=""),"",IF(H5<=Data!$H$3,"",ColTime(Data!$H$3,Data!$H$4,G5,H5)*24)) ->  | P5: =IF(OR(G5="",H5=""),"",IF((V5-I5)<=0.25,"",IF(V5-I5<0,"",V5-I5))) ->  | Q5: =IF(OR(G5="",H5=""),"",IF((V5-I5)<=0.25,"",IF(V5-I5<0,"",V5-I5))) ->  | V5: =IF(G5=F5," ",IF(G5="",0,(+H5-G5)*24)) -> 8.25
A6: 2 | B6: =IF(WEEKDAY(D6,11)=1,_xlfn.ISOWEEKNUM(D6),"") ->  | C6: =CHOOSE(WEEKDAY(D6,11),"man", "Tirs","Ons","Tors","FRE","Lør","søn") -> søn | D6: =D5+1 -> 2017-01-16 | E6: =IF(A6<>"",VLOOKUP(A6,Data!$N$3:$O$5,2,0),"") -> 07:45:00 | F6: =IF(A6<>"",VLOOKUP(A6,Data!$P$3:$Q$5,2,0),"") -> 18:00:00 | G6: =+E6 -> 07:45:00 | H6: =+F6 -> 18:00:00 | I6: =IF(F6=E6," ",IF(E6="",0,(+F6-E6)*24)) -> 10.25 | M6: =IF(OR(G6="",H6=""),"",IF(H6<=Data!$H$3,"",ColTime(Data!$H$3,Data!$H$4,G6,H6)*24)) -> 1 | P6: =IF(OR(G6="",H6=""),"",IF((V6-I6)<=0.25,"",IF(V6-I6<0,"",V6-I6))) ->  | Q6: =IF(OR(G6="",H6=""),"",IF((V6-I6)<=0.25,"",IF(V6-I6<0,"",V6-I6))) ->  | V6: =IF(G6=F6," ",IF(G6="",0,(+H6-G6)*24)) -> 10.25
A7: 3 | B7: =IF(WEEKDAY(D7,11)=1,_xlfn.ISOWEEKNUM(D7),"") -> 3 | C7: =CHOOSE(WEEKDAY(D7,11),"man", "Tirs","Ons","Tors","FRE","Lør","søn") -> man | D7: =D6+1 -> 2017-01-17 | E7: =IF(A7<>"",VLOOKUP(A7,Data!$N$3:$O$5,2,0),"") -> 07:45:00 | F7: =IF(A7<>"",VLOOKUP(A7,Data!$P$3:$Q$5,2,0),"") -> 20:00:00 | G7: 07:45:00 | H7: 20:00:00 | I7: 12.25 | M7: =IF(OR(G7="",H7=""),"",IF(H7<=Data!$H$3,"",ColTime(Data!$H$3,Data!$H$4,G7,H7)*24)) -> 3 | V7: 12.25
C8: =CHOOSE(WEEKDAY(D8,11),"man", "Tirs","Ons","Tors","FRE","Lør","søn") -> Tirs | D8: 2017-01-18 | E8: =IF(A8<>"",VLOOKUP(A8,Data!$N$3:$O$5,2,0),"") ->  | F8: =IF(A8<>"",VLOOKUP(A8,Data!$P$3:$Q$5,2,0),"") ->  | G8: 12:00:00 | H8: 16:00:00 | K8: =IF(OR(G8="",H8=""),"",IF(B8="",V8,IF(((V8-I8)*-1)<=0.2,"", IF((V8-I8)*-1<0,"",(V8-I8)*-1)))) -> 0.1666666667 | M8: =IF(OR(G8="",H8=""),"",IF(H8<=Data!$H$3,"",ColTime(Data!$H$3,Data!$H$4,G8,H8)*24)) ->  | P8: =IF(OR(G8="",H8=""),"",IF(A8="",IF(V8>Data!U3,Data!U3,IF(Nov!V8<Data!U3,Nov!V8,IF((V8-I8)<=0.25,"",IF(V8-I8<0,"",V8-I8)))))) -> 0.125 | Q8: =IF(OR(G8="",H8=""),"",IF(AND(A8="",V8>Data!U3),Nov!V8-Data!U3,IF((V8-I8)<=0.25,"",IF(V8-I8<0,"",V8-I8)))) -> 0.04166666667 | V8: =IF(G8=F8," ",IF(G8="",0,(+H8-G8))) -> 0.1666666667
C9: Ons | D9: 2017-01-19 | E9: =IF(A9<>"",VLOOKUP(A9,Data!$N$3:$O$5,2,0),"") ->  | F9: =IF(A9<>"",VLOOKUP(A9,Data!$P$3:$Q$5,2,0),"") ->  | M9: =IF(OR(G9="",H9=""),"",IF(H9<=Data!$H$3,"",ColTime(Data!$H$3,Data!$H$4,G9,H9)*24)) -> 
C10: Tors | D10: 2017-01-20 | E10: =IF(A10<>"",VLOOKUP(A10,Data!$N$3:$O$5,2,0),"") ->  | F10: =IF(A10<>"",VLOOKUP(A10,Data!$P$3:$Q$5,2,0),"") ->  | M10: =IF(OR(G10="",H10=""),"",IF(H10<=Data!$H$3,"",ColTime(Data!$H$3,Data!$H$4,G10,H10)*24)) -> 
C11: FRE | D11: 2017-01-21 | E11: =IF(A11<>"",VLOOKUP(A11,Data!$N$3:$O$5,2,0),"") ->  | F11: =IF(A11<>"",VLOOKUP(A11,Data!$P$3:$Q$5,2,0),"") ->  | M11: =IF(OR(G11="",H11=""),"",IF(H11<=Data!$H$3,"",ColTime(Data!$H$3,Data!$H$4,G11,H11)*24)) -> 
C12: Lør | D12: 2017-01-22 | E12: =IF(A12<>"",VLOOKUP(A12,Data!$N$3:$O$5,2,0),"") ->  | F12: =IF(A12<>"",VLOOKUP(A12,Data!$P$3:$Q$5,2,0),"") ->  | M12: =IF(OR(G12="",H12=""),"",IF(H12<=Data!$H$3,"",ColTime(Data!$H$3,Data!$H$4,G12,H12)*24)) -> 
C13: søn | D13: 2017-01-23 | E13: =IF(A13<>"",VLOOKUP(A13,Data!$N$3:$O$5,2,0),"") ->  | F13: =IF(A13<>"",VLOOKUP(A13,Data!$P$3:$Q$5,2,0),"") ->  | M13: =IF(OR(G13="",H13=""),"",IF(H13<=Data!$H$3,"",ColTime(Data!$H$3,Data!$H$4,G13,H13)*24)) -> 
B14: 4 | C14: man | D14: 2017-01-24 | E14: =IF(A14<>"",VLOOKUP(A14,Data!$N$3:$O$5,2,0),"") ->  | F14: =IF(A14<>"",VLOOKUP(A14,Data!$P$3:$Q$5,2,0),"") ->  | M14: =IF(OR(G14="",H14=""),"",IF(H14<=Data!$H$3,"",ColTime(Data!$H$3,Data!$H$4,G14,H14)*24)) -> 
C15: Tirs | D15: 2017-01-25 | E15: =IF(A15<>"",VLOOKUP(A15,Data!$N$3:$O$5,2,0),"") ->  | F15: =IF(A15<>"",VLOOKUP(A15,Data!$P$3:$Q$5,2,0),"") ->  | M15: =IF(OR(G15="",H15=""),"",IF(H15<=Data!$H$3,"",ColTime(Data!$H$3,Data!$H$4,G15,H15)*24)) -> 
C16: Ons | D16: 2017-01-26 | E16: =IF(A16<>"",VLOOKUP(A16,Data!$N$3:$O$5,2,0),"") ->  | F16: =IF(A16<>"",VLOOKUP(A16,Data!$P$3:$Q$5,2,0),"") ->  | K16: =IF(OR(G16="",H16=""),"",IF(((V16-I16)*-1)<=0.2,"", IF((V16-I16)*-1<0,"",(V16-I16)*-1))) ->  | M16: =IF(OR(G16="",H16=""),"",IF(H16<=Data!$H$3,"",ColTime(Data!$H$3,Data!$H$4,G16,H16)*24)) -> 
C17: Tors | D17: 2017-01-27 | E17: =IF(A17<>"",VLOOKUP(A17,Data!$N$3:$O$5,2,0),"") ->  | F17: =IF(A17<>"",VLOOKUP(A17,Data!$P$3:$Q$5,2,0),"") ->  | K17: =IF(OR(G17="",H17=""),"",IF(((V17-I17)*-1)<=0.2,"", IF((V17-I17)*-1<0,"",(V17-I17)*-1))) ->  | M17: =IF(OR(G17="",H17=""),"",IF(H17<=Data!$H$3,"",ColTime(Data!$H$3,Data!$H$4,G17,H17)*24)) ->  | P17: =IF(OR(G17="",H17=""),"",IF((V17-I17)<=0.25,"",IF(V17-I17<0,"",V17-I17))) ->  | Q17: =IF(OR(G17="",H17=""),"",IF((V17-I17)<=0.25,"",IF(V17-I17<0,"",V17-I17))) -> 
C18: FRE | D18: 2017-01-28 | E18: =IF(A18<>"",VLOOKUP(A18,Data!$N$3:$O$5,2,0),"") ->  | F18: =IF(A18<>"",VLOOKUP(A18,Data!$P$3:$Q$5,2,0),"") ->  | M18: =IF(OR(G18="",H18=""),"",IF(H18<=Data!$H$3,"",ColTime(Data!$H$3,Data!$H$4,G18,H18)*24)) -> 
C19: Lør | D19: 2017-01-29 | E19: =IF(A19<>"",VLOOKUP(A19,Data!$N$3:$O$5,2,0),"") ->  | F19: =IF(A19<>"",VLOOKUP(A19,Data!$P$3:$Q$5,2,0),"") ->  | M19: =IF(OR(G19="",H19=""),"",IF(H19<=Data!$H$3,"",ColTime(Data!$H$3,Data!$H$4,G19,H19)*24)) -> 
C20: søn | D20: 2017-01-30 | E20: =IF(A20<>"",VLOOKUP(A20,Data!$N$3:$O$5,2,0),"") ->  | F20: =IF(A20<>"",VLOOKUP(A20,Data!$P$3:$Q$5,2,0),"") ->  | M20: =IF(OR(G20="",H20=""),"",IF(H20<=Data!$H$3,"",ColTime(Data!$H$3,Data!$H$4,G20,H20)*24)) ->  | P20: =IF(OR(G20="",H20=""),"",IF((V20-I20)<=0.25,"",IF(V20-I20<0,"",V20-I20))) ->  | Q20: =IF(OR(G20="",H20=""),"",IF((V20-I20)<=0.25,"",IF(V20-I20<0,"",V20-I20))) -> 
B21: 5 | C21: man | D21: 2017-01-31 | E21: =IF(A21<>"",VLOOKUP(A21,Data!$N$3:$O$5,2,0),"") ->  | F21: =IF(A21<>"",VLOOKUP(A21,Data!$P$3:$Q$5,2,0),"") ->  | M21: =IF(OR(G21="",H21=""),"",IF(H21<=Data!$H$3,"",ColTime(Data!$H$3,Data!$H$4,G21,H21)*24)) -> 
C22: Tirs | D22: 2017-02-01 | E22: =IF(A22<>"",VLOOKUP(A22,Data!$N$3:$O$5,2,0),"") ->  | F22: =IF(A22<>"",VLOOKUP(A22,Data!$P$3:$Q$5,2,0),"") ->  | M22: =IF(OR(G22="",H22=""),"",IF(H22<=Data!$H$3,"",ColTime(Data!$H$3,Data!$H$4,G22,H22)*24)) -> 
C23: Ons | D23: 2017-02-02 | E23: =IF(A23<>"",VLOOKUP(A23,Data!$N$3:$O$5,2,0),"") ->  | F23: =IF(A23<>"",VLOOKUP(A23,Data!$P$3:$Q$5,2,0),"") ->  | M23: =IF(OR(G23="",H23=""),"",IF(H23<=Data!$H$3,"",ColTime(Data!$H$3,Data!$H$4,G23,H23)*24)) -> 
C24: Tors | D24: 2017-02-03 | E24: =IF(A24<>"",VLOOKUP(A24,Data!$N$3:$O$5,2,0),"") ->  | F24: =IF(A24<>"",VLOOKUP(A24,Data!$P$3:$Q$5,2,0),"") ->  | M24: =IF(OR(G24="",H24=""),"",IF(H24<=Data!$H$3,"",ColTime(Data!$H$3,Data!$H$4,G24,H24)*24)) -> 
C25: FRE | D25: 2017-02-04 | E25: =IF(A25<>"",VLOOKUP(A25,Data!$N$3:$O$5,2,0),"") ->  | F25: =IF(A25<>"",VLOOKUP(A25,Data!$P$3:$Q$5,2,0),"") ->  | M25: =IF(OR(G25="",H25=""),"",IF(H25<=Data!$H$3,"",ColTime(Data!$H$3,Data!$H$4,G25,H25)*24)) -> 
C26: Lør | D26: 2017-02-05 | E26: =IF(A26<>"",VLOOKUP(A26,Data!$N$3:$O$5,2,0),"") ->  | F26: =IF(A26<>"",VLOOKUP(A26,Data!$P$3:$Q$5,2,0),"") ->  | M26: =IF(OR(G26="",H26=""),"",IF(H26<=Data!$H$3,"",ColTime(Data!$H$3,Data!$H$4,G26,H26)*24)) -> 
C27: søn | D27: 2017-02-06 | E27: =IF(A27<>"",VLOOKUP(A27,Data!$N$3:$O$5,2,0),"") ->  | F27: =IF(A27<>"",VLOOKUP(A27,Data!$P$3:$Q$5,2,0),"") ->  | M27: =IF(OR(G27="",H27=""),"",IF(H27<=Data!$H$3,"",ColTime(Data!$H$3,Data!$H$4,G27,H27)*24)) -> 
B28: 6 | C28: man | D28: 2017-02-07 | E28: =IF(A28<>"",VLOOKUP(A28,Data!$N$3:$O$5,2,0),"") ->  | F28: =IF(A28<>"",VLOOKUP(A28,Data!$P$3:$Q$5,2,0),"") ->  | M28: =IF(OR(G28="",H28=""),"",IF(H28<=Data!$H$3,"",ColTime(Data!$H$3,Data!$H$4,G28,H28)*24)) -> 
C29: Tirs | D29: 2017-02-08 | E29: =IF(A29<>"",VLOOKUP(A29,Data!$N$3:$O$5,2,0),"") ->  | F29: =IF(A29<>"",VLOOKUP(A29,Data!$P$3:$Q$5,2,0),"") ->  | M29: =IF(OR(G29="",H29=""),"",IF(H29<=Data!$H$3,"",ColTime(Data!$H$3,Data!$H$4,G29,H29)*24)) -> 
C30: Ons | D30: 2017-02-09 | E30: =IF(A30<>"",VLOOKUP(A30,Data!$N$3:$O$5,2,0),"") ->  | F30: =IF(A30<>"",VLOOKUP(A30,Data!$P$3:$Q$5,2,0),"") ->  | M30: =IF(OR(G30="",H30=""),"",IF(H30<=Data!$H$3,"",ColTime(Data!$H$3,Data!$H$4,G30,H30)*24)) -> 
C31: Tors | D31: 2017-02-10 | E31: =IF(A31<>"",VLOOKUP(A31,Data!$N$3:$O$5,2,0),"") ->  | F31: =IF(A31<>"",VLOOKUP(A31,Data!$P$3:$Q$5,2,0),"") ->  | M31: =IF(OR(G31="",H31=""),"",IF(H31<=Data!$H$3,"",ColTime(Data!$H$3,Data!$H$4,G31,H31)*24)) -> 
C32: FRE | D32: 2017-02-11 | E32: =IF(A32<>"",VLOOKUP(A32,Data!$N$3:$O$5,2,0),"") ->  | F32: =IF(A32<>"",VLOOKUP(A32,Data!$P$3:$Q$5,2,0),"") ->  | M32: =IF(OR(G32="",H32=""),"",IF(H32<=Data!$H$3,"",ColTime(Data!$H$3,Data!$H$4,G32,H32)*24)) -> 
B33: =IFERROR(IF(WEEKDAY(D33,11)=1,_xlfn.ISOWEEKNUM(D33),""),"") ->  | C33: =IFERROR(CHOOSE(WEEKDAY(D33,11),"man", "Tirs","Ons","Tors","FRE","Lør","søn"),"") -> Lør | D33: =IF(DAY(D32+1)>15,"",D32+1) -> 2017-02-12 | E33: =IF(A33<>"",VLOOKUP(A33,Data!$N$3:$O$5,2,0),"") ->  | F33: =IF(A33<>"",VLOOKUP(A33,Data!$P$3:$Q$5,2,0),"") ->  | M33: =IF(OR(G33="",H33=""),"",IF(H33<=Data!$H$3,"",ColTime(Data!$H$3,Data!$H$4,G33,H33)*24)) -> 
B34: =IFERROR(IF(WEEKDAY(D34,11)=1,_xlfn.ISOWEEKNUM(D34),""),"") ->  | C34: =IFERROR(CHOOSE(WEEKDAY(D34,11),"man", "Tirs","Ons","Tors","FRE","Lør","søn"),"") -> søn | D34: =IFERROR(D33+1,"") -> 2017-02-13 | E34: =IF(A34<>"",VLOOKUP(A34,Data!$N$3:$O$5,2,0),"") ->  | F34: =IF(A34<>"",VLOOKUP(A34,Data!$P$3:$Q$5,2,0),"") ->  | M34: =IF(OR(G34="",H34=""),"",IF(H34<=Data!$H$3,"",ColTime(Data!$H$3,Data!$H$4,G34,H34)*24)) -> 
B35: 7 | C35: man | D35: =IFERROR(IF(DAY(D34+1)>15,"",D34+1),"") -> 2017-02-14 | E35: =IF(A35<>"",VLOOKUP(A35,Data!$N$3:$O$5,2,0),"") ->  | F35: =IF(A35<>"",VLOOKUP(A35,Data!$P$3:$Q$5,2,0),"") ->  | M35: =IF(OR(G35="",H35=""),"",IF(H35<=Data!$H$3,"",ColTime(Data!$H$3,Data!$H$4,G35,H35)*24)) -> 
E36: SUM AF Tim./till.: | I36: =SUM(I5:I35) -> 30.75 | K36: =SUM(K5:K35) -> 0.1666666667 | M36: =SUM(M5:M35) -> 4 | P36: =SUM(P5:P35) -> 0.125 | Q36: =SUM(Q5:Q35) -> 0.04166666667
D38: +/- Norm time overført fra sidste periode: | K38: +/- Norm time i periode: | P38: +/- Norm time til overførsel næste periode: | S38: =I36-151.66 -> -120.91
D39: +/- Afsp time overført fra sidste periode: | K39: Afsp. time i periode: | P39: +/- Afsp. Time i alt til overførsel: +/- afsp. tim.+ekstra tim.+OA tim.
D40: Kursus time i periode: | K40: Ekstra tim. I periode: | P40: Timer til udbetaling: A/N till. + evt. øverige timer | S40: =M36 -> 4
D41: Afholdt Ferie (I timer) i periode: | K41: Optj. OA tim. +50%: Time + 50% | N41: =P36*1.5 -> 0.1875 | P41: Saldo Ferie timer til overførsel:
D42: Afholdt FerieFri time i periode: | K42: Optj. OA tim. +100%: Time + 100% | N42: =Q36*2 -> 0.08333333333 | P42: Saldo FerieFri time til overførsel:
D43: Optjent NY Ferie (dage) | I43: 2.08 | K43: Afholdt NY ferie(dage) | P43: Saldo NY ferie (dage)
D44: DATO: ______________________ | K44: UNDERSKRIFT: _______________________________ ml 01.09.20

Sheet Data
B2: Rulle Liste | D2: Rulle Liste | F2: Timer | H2: Coltime | N2: Vagttype | O2: start | P2: Vagttype | Q2: slut | R2: Vagttype | S2: antal timer
D3: 07:45:00 | E3: 07:45:00 | F3: =SUM(Nov!I5:I35) -> 30.75 | H3: 17:00:00 | J3: 0 | N3: 1 | O3: 07:45:00 | P3: 1 | Q3: 16:00:00 | R3: 1 | S3: 8.25 | U3: 03:00:00
B4: 07:45:00 | C4: 16:00:00 | D4: 08:00:00 | E4: 08:00:00 | H4: 1 | J4: 1 | K4: 07:45:00 | L4: 16:00:00 | N4: 2 | O4: 07:45:00 | P4: 2 | Q4: 18:00:00 | R4: 2 | S4: 10.25
B5: 07:45:00 | C5: 18:00:00 | D5: 08:15:00 | E5: 08:15:00 | F5: Vagter | J5: 2 | K5: 07:45:00 | L5: 18:00:00 | N5: 3 | O5: 07:45:00 | P5: 3 | Q5: 20:00:00 | R5: 3 | S5: 12.25
D6: 08:30:00 | E6: 08:30:00 | F6: =COUNT(Nov!I5:I35) -> 3 | J6: 3 | K6: 07:45:00 | L6: 20:00:00
D7: 08:45:00 | E7: 08:45:00
D8: 09:00:00 | E8: 09:00:00 | F8: Vagter (S)
D9: 09:15:00 | E9: 09:15:00 | F9: =COUNTIF(Nov!I5:I35, 8.25) -> 1
D10: 09:30:00 | E10: 09:30:00
D11: 09:45:00 | E11: 09:45:00 | F11: Vagter (L)
D12: 10:00:00 | E12: 10:00:00 | F12: =COUNTIF(Nov!I5:I35, 10.25) -> 1
D13: 10:15:00 | E13: 10:15:00
D14: 10:30:00 | E14: 10:30:00
D15: 10:45:00 | E15: 10:45:00
D16: 11:00:00 | E16: 11:00:00
D17: 11:15:00 | E17: 11:15:00
D18: 11:30:00 | E18: 11:30:00
D19: 11:45:00 | E19: 11:45:00
D20: 12:00:00 | E20: 12:00:00
D21: 12:15:00 | E21: 12:15:00
D22: 12:30:00 | E22: 12:30:00
D23: 12:45:00 | E23: 12:45:00
D24: 13:00:00 | E24: 13:00:00
D25: 13:15:00 | E25: 13:15:00
D26: 13:30:00 | E26: 13:30:00
D27: 13:45:00 | E27: 13:45:00
D28: 14:00:00 | E28: 14:00:00
D29: 14:15:00 | E29: 14:15:00
D30: 14:30:00 | E30: 14:30:00
D31: 14:45:00 | E31: 14:45:00
D32: 15:00:00 | E32: 15:00:00
D33: 15:15:00 | E33: 15:15:00
D34: 15:30:00 | E34: 15:30:00
D35: 15:45:00 | E35: 15:45:00
D36: 16:00:00 | E36: 16:00:00
D37: 16:15:00 | E37: 16:15:00
E38: 16:30:00
E39: 16:45:00
E40: 17:00:00
E41: 17:15:00
E42: 17:30:00
E43: 17:45:00
E44: 18:00:00
E45: 18:15:00
E46: 18:30:00
E47: 18:45:00
E48: 19:00:00
E49: 19:15:00
E50: 19:30:00
E51: 19:45:00
E52: 20:00:00
